Cogmind - Beta 16 @@@ ROGUE MODE // 2025.12.29 @ 21:03:55 Player: tritri Result: Destroyed by G-34 Mercenary with Small Laser Performance ------------- Evolutions (0) 0 Regions Visited (2) 400 Robots Destroyed (14) 70 Value Destroyed (353) 353 Prototype IDs (2) 40 Alien Tech Used (0) 0 Bonus (0) 0 TOTAL SCORE: 863 Bonus ------- None Cogmind --------- Core Integrity 0/250 Matter 164/300 Energy 100/100 System Corruption 2% Temperature Cool (6) Movement Core (50) Location -10/Mines Parts ------- > --- POWER (1) -------- (None) > --- PROPULSION (2) --- (None) > --- UTILITY (2) ------ (None) > --- WEAPON (2) ------- (None) > --- INVENTORY (5) ---- Flight Unit Medium Laser Rocket Launcher Datajack Mining Laser Peak State ------------ > --- POWER ------------ Ion Engine > --- PROPULSION ------- Aluminum Leg Aluminum Leg > --- UTILITY ---------- Small Storage Unit ECM Suite > --- WEAPON ----------- Medium Laser Light Assault Rifle > --- INVENTORY -------- Light Ion Engine [Rating: 7] Favorites ----------- Power Ion Engine Engine Ion Engine Propulsion Aluminum Leg Leg Aluminum Leg Utility Small Storage Unit Device ECM Suite Storage Small Storage Unit Weapon Light Assault Rifle Energy Gun Medium Laser Ballistic Gun Light Assault Rifle Launcher Grenade Launcher Build | -11 -10 -10 ------- Run | Yrd Mat Min Slots Evolved . | . . . Power . | . . . Propulsion . | . . . Utility . | . . . Weapon . | . . . Parts Attached 8 | 6 2 . Power 1 | 1 . . Engine 1 | 1 . . Core . | . . . Reactor . | . . . Propulsion 2 | 2 . . Treads . | . . . Leg 2 | 2 . . Wheel . | . . . Hover . | . . . Flight . | . . . Utility 2 | 1 1 . Device 1 | . 1 . Storage 1 | 1 . . Processor . | . . . Hackware . | . . . Protection . | . . . Artifact . | . . . Weapon 3 | 2 1 . Energy Gun 1 | 1 . . Energy Cannon . | . . . Ballistic Gun 1 | 1 . . Ballistic Cannon . | . . . Launcher 1 | . 1 . Special Weapon . | . . . Impact Weapon . | . . . Slashing Weapon . | . . . Piercing Weapon . | . . . Special Melee Weapon . | . . . Unidentified Prototypes . | . . . Parts Lost 2 | . . 2 Power . | . . . Propulsion 2 | . . 2 Utility . | . . . Weapon . | . . . Highest Loss Streak 2 | . . 2 To Critical Strikes . | . . . Average Backups 3 | . 3 6 Power . | . 1 . Propulsion . | . . 1 Utility . | . . . Weapon 1 | . . 2 Tool/Special . | . . . Unused Backups 5 | . . 5 Power 1 | . . 1 Propulsion 1 | . . 1 Utility 1 | . . 1 Weapon 1 | . . 1 Tool/Special 1 | . . 1 Average Slot Usage (%) 91 | . 98 70 Engine 13 | . 14 9 Leg 26 | . 28 19 Device 11 | . 12 9 Storage 13 | . 14 9 Energy Gun 2 | . 3 . Ballistic Gun 13 | . 14 9 Launcher 10 | . 10 9 Peak Build Rating 7 | 6 7 7 Average Rating 6 | 5 6 4 On Entrance 4 | . 6 7 Avg Prop Armor Cover (%) . | . . . Naked Turns 82 | . . 82 Heaviest Build 16 | 13 16 16 Greatest Support 20 | 20 20 20 Greatest Overweight (x) . | . . . Average Overweight (x) . | . . . Largest Inventory Capacity 8 | 8 8 8 Average Capacity 7 | 7 8 7 Most Carried 7 | 1 6 7 Average Carried 3 | . 3 6 Final Capacity 8 | 8 8 5 Final Carried 6 | 1 6 5 Class Distribution -------------------- 100% | Mutant Dominant Class ---------------- Mutant | -10/Materials Mutant | -10/Mines Resources | -11 -10 -10 ----------- Run | Yrd Mat Min Matter Collected 325 | 229 96 . Remotely . | . . . Salvage Created 283 | . 274 9 Parts 23 | . 23 . Haulers Intercepted 1 | . 1 . Recyclers Shooed . | . . . Parts Field Recycled . | . . . Retrieved Matter . | . . . Parts Self-Destructed . | . . . Prevented . | . . . Parts Restored . | . . . Kills | -11 -10 -10 ------- Run | Yrd Mat Min Combat Hostiles Destroyed 10 | . 8 2 AOE 10 | . 8 2 Classes Destroyed 7 | . 6 1 Hauler 1 | . 1 . Mechanic 1 | . 1 . Operator 2 | . 2 . Watcher 2 | . 2 . Swarmer 1 | . 1 . Grunt 7 | . 7 . Assembled 2 | . . 2 Best Kill Streak 5 | . 5 2 Combat Bots Only 4 | . 4 2 Max Kills in Single Turn 3 | . 3 2 Gunslinging . | . . . Exploded 2 | . 2 2 Melee . | . . . Uniques/NPCs Destroyed . | . . . Combat | -11 -10 -10 -------- Run | Yrd Mat Min Hostile Shots Fired 46 | . 26 20 Missed 10 | . 5 5 Hits 36 | . 21 15 Melee 2 | . . 2 Projectile 34 | . 21 13 Critical Strikes 1 | . . 1 Damage Taken 580 | . 313 267 Core 259 | . 65 194 Absorbed by Shields . | . . . Regen/Repaired (Parts) 59 | . 59 . Core Remaining (%) 100 | 100 . . Volleys Fired 27 | . 24 3 Largest 2 | . 2 2 Hottest 50 | . 50 50 Shots Fired 47 | . 41 6 Gun 27 | . 24 3 Cannon . | . . . Launcher 20 | . 17 3 Special . | . . . Kinetic 27 | . 24 3 Thermal . | . . . Explosive 20 | . 17 3 Electromagnetic . | . . . Robot Hit Streak 10 | . 10 . Robot Miss Streak 6 | . 4 6 Penetration Max . | . . . Secondary Targets . | . . . Shots Hit Robots 20 | . 20 . Core Hits 38 | . 21 17 Critical Kills . | . . . Critical Parts Destroyed . | . . . Critical Strikes . | . . . Melee Attacks . | . . . Impact . | . . . Slashing . | . . . Piercing . | . . . Sneak Attacks . | . . . Combat Hostiles . | . . . Follow-up Attacks . | . . . Damage Inflicted 1218 | . 917 301 Guns 77 | . 77 . Cannons . | . . . Explosions 1092 | . 840 252 Melee . | . . . Ramming 49 | . . 49 Kinetic 77 | . 77 . Thermal . | . . . Explosive 1092 | . 840 252 Electromagnetic . | . . . Impact . | . . . Slashing . | . . . Piercing . | . . . Highest Corruption . | . . . Average Corruption . | . . . Corruption Purged . | . . . Corruption Blocked . | . . . Overload Shots . | . . . Overflow Damage . | . . . Projectiles . | . . . Explosions . | . . . Melee . | . . . Knockbacks . | . . . Impact . | . . . Kinetic . | . . . Secondary . | . . . Self-Inflicted Damage 96 | . 59 37 Shots 4 | . 3 1 Rammed 14 | . . 14 Targets Rammed 14 | . . 14 Kicked . | . . . Crushed . | . . . Highest Temperature 38 | . 38 10 Average Temperature 13 | . 14 7 Received Heat Transfer 222 | . 147 75 Siege Activations . | . . . Martial Activations . | . . . Shielding Activations . | . . . Robots Disrupted . | . . . Combat Hostiles . | . . . Robots Corrupted . | . . . Combat Hostiles . | . . . Parts Fried . | . . . Impact Corruptions . | . . . Robots Melted . | . . . Combat Hostiles . | . . . Parts Melted . | . . . Heat Transferred . | . . . Parts Sabotaged . | . . . Parts Stolen . | . . . Parts Stripped . | . . . Power Chain Reactions . | . . . Alert | -11 -10 -10 ------- Run | Yrd Mat Min Maximum Alert Level . | . . . Low Security (%) 100 | 100 100 100 Level 1 . | . . . Level 2 . | . . . Level 3 . | . . . Level 4 . | . . . Level 5 . | . . . High Security . | . . . Max Security . | . . . Peak Influence 176 | . 176 21 Initial 21 | . . 21 Average 40 | . 65 2 Influence Increases 340 | . 314 26 Destroy 0b10 Robot/C 160 | . 160 . Destroy 0b10 Robot/NC 30 | . 30 . Destroy Leader 46 | . 46 . Destroy Structure 104 | . 78 26 Influence Decreases 340 | . 260 80 Entered New Map 33 | . . 33 Time Decay 288 | . 260 28 Lost Part 19 | . . 19 Squads Dispatched 2 | . 2 . Investigation . | . . . Extermination . | . . . Reinforcement 2 | . 2 . Assault . | . . . Garrison . | . . . Intercept . | . . . Searches Triggered . | . . . Construction Impeded . | . . . Haulers Reinforced . | . . . Active Scanning Responses . | . . . Cargo Convoy Interrupts . | . . . Stealth | -11 -10 -10 --------- Run | Yrd Mat Min Distress Signals 4 | . 3 1 Communications Jammed . | . . . Distress Signals . | . . . Times Spotted 28 | . 13 15 Peak Tracking Total 17 | . 3 17 Tactical Retreats 2 | . . 2 Traps | -11 -10 -10 ------- Run | Yrd Mat Min Traps Triggered . | . . . Indirectly . | . . . Trap Hack Attempts . | . . . Triggered . | . . . Disarmed 6 | . 6 . Reprogrammed . | . . . Reused . | . . . Traps Extracted . | . . . Installed . | . . . Triggered . | . . . Machines | -11 -10 -10 ---------- Run | Yrd Mat Min Machines Disabled . | . . . Max in Single Turn . | . . . Machines Repaired . | . . . Machines Dismantled . | . . . Machines Sabotaged . | . . . Overloaded Fab Kills . | . . . Hacking | -11 -10 -10 --------- Run | Yrd Mat Min Machines Accessed 6 | . 5 1 Terminals 4 | . 4 . Fabricators . | . . . Repair Stations 1 | . 1 . Recycling Units . | . . . Scanalyzers . | . . . Garrison Access . | . . . Total Hacks 8 | . 7 1 Successful 7 | . 6 1 Failed 1 | . 1 . Catastrophic . | . . . Database Lockouts . | . . . Manual 1 | . 1 . Terminals 5 | . 5 . Fabricators . | . . . Repair Stations 2 | . 2 . Recycling Units . | . . . Scanalyzers . | . . . Garrison Access . | . . . Terminal Hacks 5 | . 4 1 Prototype ID Bank 1 | . 1 . Open Door 1 | . . 1 Alert Level 1 | . 1 . Disarm Traps 1 | . 1 . Zone Layout 1 | . 1 . Fabricator Hacks . | . . . Repair Station Hacks 2 | . 2 . Scan Component 1 | . 1 . Repair 1 | . 1 . Recycling Unit Hacks . | . . . Scanalyzer . | . . . Garrison Access Hacks . | . . . Unauthorized Hacks . | . . . Terminals . | . . . Fabricators . | . . . Repair Stations . | . . . Recycling Units . | . . . Scanalyzers . | . . . Garrison Access . | . . . Data Cores Recovered . | . . . Used . | . . . Hacking Detections 1 | . 1 . Full Trace Events . | . . . Feedback Events . | . . . Feedback Blocked . | . . . Robot Schematics Acquired . | . . . Robots Built . | . . . Authchips . | . . . Time . | . . . Total Robot Build Rating . | . . . Part Schematics Acquired . | . . . Parts Built . | . . . Authchips . | . . . Time . | . . . Total Part Build Rating . | . . . Part Studies Acquired . | . . . Parts Repaired 1 | . 1 . Time 26 | . 26 . Parts Recycled . | . . . Recycled Matter . | . . . Retrieved Matter . | . . . Retrieved Components . | . . . Parts Scanalyzed . | . . . Part Schematics Acquired . | . . . Parts Damaged . | . . . Bothacking | -11 -10 -10 ------------ Run | Yrd Mat Min Used RIF Installer . | . . . Robots Hacked . | . . . Non-combat . | . . . Combat . | . . . Robot Hacks Applied . | . . . Relay Couplers Released . | . . . Fabnet Peak Effective % . | . . . Robots Rewired . | . . . Allies Hacked . | . . . Hacks Repelled . | . . . Allies | -11 -10 -10 -------- Run | Yrd Mat Min Total Allies 2 | . . 2 Largest Group 2 | . . 2 Highest-Rated Group 51 | . . 51 Highest-Rated Ally 31 | . . 31 Total Orders . | . . . Ally Attacks . | . . . Total Damage . | . . . Kills . | . . . Allies Corrupted . | . . . Allies Melted . | . . . Intel | -11 -10 -10 ------- Run | Yrd Mat Min Active Infowar (turns) 948 | . 767 181 ECM 948 | . 767 181 Robot Analysis Total . | . . . Derelict Logs Recovered . | . . . Drone Launches . | . . . Drone Recoveries . | . . . Exploration | -11 -10 -10 ------------- Run | Yrd Mat Min Turns Passed 1377 | 267 847 263 Spaces Moved 975 | 67 628 280 Core 143 | 6 . 137 Treads . | . . . Legs 832 | 61 628 143 Wheels . | . . . Hover . | . . . Flight . | . . . Fastest Speed 50 | 50 120 50 Average Speed 109 | 113 120 85 Slowest Speed 120 | 120 120 120 Overloaded Moves . | . . . Propulsion Burnouts . | . . . Robots Hopped . | . . . Potential Cave-ins 2 | . 2 . Cave-ins Triggered . | . . . Exploration Rate (%) 51 | 6 89 60 Regions Visited 2 Branch Regions 1 Pre-discovered Areas . | . . . Known Exits Taken . | . . . Unknown Exits Taken 2 | 1 1 . Scrap Searched . | . . . Spaces Dug . | . . . Terrain Destroyed 106 | . 77 29 Melee . | . . . Projectile . | . . . AOE 106 | . 77 29 Terrain Rammed . | . . . Walls Destroyed . | . . . Machines Disabled . | . . . Actions | -11 -10 -10 --------- Run | Yrd Mat Min Total 1236 | 255 683 298 Wait 206 | 182 24 . Move 973 | 66 627 280 Hop . | . . . Pick Up 7 | 1 5 1 Fast Attach 8 | 6 2 . Attach . | . . . Detach . | . . . Swap 1 | . 1 . Drop . | . . . Fire 27 | . 24 3 Melee . | . . . Ram 14 | . . 14 Kick . | . . . Crush . | . . . Escape Stasis . | . . . Rewire . | . . . Trap . | . . . Miscellaneous . | . . . Route ------- -11/Scrapyard -10/Materials (discovered 5 exits: [*Mat x3] / *Min / [*Sub]) -10/Mines (discovered 1 exit: [*Mat]) History --------- Turn | Location | Event 3 | -11/Scrapyard | Discovered new exit (range 14) 268 | -11/Scrapyard | Entered Materials 307 | -10/Materials | Build established: Mutant 482 | -10/Materials | Discovered new exit (range 15) 674 | -10/Materials | Discovered new exit (range 8) 873 | -10/Materials | Discovered new exit (range 5) 1006 | -10/Materials | Repaired Grenade Launcher 1031 | -10/Materials | Discovered new exit (range 9) 1075 | -10/Materials | Discovered new exit (range 10) 1115 | -10/Materials | Entered Mines 1180 | -10/Mines | Received a Rocket Launcher from a helpful Derelict 1260 | -10/Mines | Found the Drone Emporium 1282 | -10/Mines | Assembled infested the area 1296 | -10/Mines | Released all parts (5) 1363 | -10/Mines | Core integrity fell below 50% 1366 | -10/Mines | Discovered new exit (range 7) 1373 | -10/Mines | Core integrity fell below 20% 1378 | -10/Mines | Destroyed by G-34 Mercenary with Small Laser Last Messages --------------- 01291_ as-80149 destroyed. 01291_ as-72870 destroyed. 01294_ Aluminum Leg destroyed. 01295_ The unstable cave ceiling collapses. 01296_ Released Sml. Storage Unit. 01296_ Released Lgt. Assault Rifle. 01296_ Released Ion Engine. 01296_ Released ECM Suite. 01296_ Released Grenade Launcher. [Achievement: Live, Flee, And Rebuild] 01335_ A pair of derelicts emerge from the shadows: "We're, um, lost. You wouldn't happen to know the way out of here, would you?" 01358_ Slammed into R-06 Scavenger. 01358_ R-06 Scavenger sends out distress signal. 01361_ Slammed into R-06 Scavenger. 01366_ EXIT=FOUND 01370_ Slammed into G-47 Trooper. 01371_ Slammed into G-34 Mercenary. 01378_ Destabilizing: System corrupted (+2). Map ----- +----------------------------------------------------+ | | | | | | | | | | | | | | | | | | | | | | | ?????????????????????????????????????????? | | ?????????????????????????????###?????????? | | ?????????????????????####???# ##????????? | | ????????????????????## ### #????????? | | ????????????????????# #????????? | | ????????????????????? #????????? | | ????????????????????? ?????????? | | ?????????????????????? #?????????? | | ?????????????????????? k??????????? | | ??????????????????????? ???????????? | | ??????????????????????? ????????????? | | ???????????????????????? #????????????? | | ???????????????????????? #????????????? | | ????????????????????????#g #?????????????? | | ????????????????????????#@#??????????????? | | ????????????????????????# #??############? | | ???????#### ############# #??# #? | | ??# #??# < #? | | ???????######## ######### #??# #? | | ??????????????# #???????# #??# #? | | ??????????????# #???????# #??# !! #? | | ??????????????# #???????#g#### ! ! #? | | ?????????????## #???????# ! ! #? | | ????????????## ##??????###### !! #? | | ????????????# #???????????# #? | | ???????????## #???????????# #? | | ??#???????## ##??????????# #? | | ??# ????### ###????????# #? | | ??# #### #????????# #? | | ??# $ #???????############? | | #?# ## ## ##### #??????????????????? | | # ????# #####????# #??????????????????? | | ????# #?????????# ##??????????????????? | | ???# #??????????###???????????????????? | | ???# #????????????????????????????????? | | ???# #????????????????????????????????? | | ???# #????????????????????????????????? | | ???# #????????????????????????????????? | | #??# #????????????????????????????????? | +----------------------------------------------------+ Best States ------------- Heat Dissipation 25 Energy Generation 10 Energy Capacity 250 Matter Stores 272 Matter Capacity 300 Sight Range 16 Terrain Scan Density 10 ECM Strength 1 Evasion (%) 55 Item Schematics ----------------- None Robot Schematics ------------------ None Fabricated ------------ Nothing Repaired ---------- Grenade Launcher | 1% | -10/Materials Studied --------- None Alien Tech Used ----------------- None Achievements -------------- Live, Flee, And Rebuild Part-time Mechanic Challenges ------------ None Game ------ Seed CooledElectronShielding Manual? 0 Play Time 00:17:02 Cumulative 1.7 hours Start 2025.12.29 @ 20:46:35 End 2025.12.29 @ 21:03:55 Sessions 1 Manual Loads 0 Difficulty Rogue Special Mode None Game No. 5 Rogue 5 Adventurer 0 Explorer 0 Win Type - Total 0 Types 0/0/0/0/0/0/0/0/0/0 Lore% 6 Gallery% 2 Achievement% 5 Wizard Run 0 Options --------- Layout 1 ASCII 0 Keyboard 1 Movement Vi Keybinds 0 Fullscreen 1 Font 24/Smallcaps Map View 50x35 Zoom Use 0% Tactical HUD 1 Map Filters NONE Filters NONE Steam 1 RUN: 38809253-e4ce-4518-9858-b61fb9d14348